bitfinex-derivatives/quotes_BTCF0:USTF0_20251217
["timestamp","ask_amount","ask_price","bid_price","bid_amount"]
[1765958703605,0.22129396,86948.0,86947.0,0.19639]
[1765958708011,0.22029396,86948.0,86947.0,0.19639]
[1765958708306,0.22129396,86948.0,86947.0,0.19639]
[1765958708807,0.22129396,86948.0,86942.0,0.3608]
[1765958708808,0.19275,86943.0,86942.0,0.55932]
[1765958709007,0.19275,86943.0,86942.0,0.46027]
[1765958709304,0.19275,86943.0,86942.0,0.55932]
[1765958709503,0.2042554,86943.0,86942.0,0.55932]
[1765958709707,0.2630158,86940.0,86939.0,0.00017251]
[1765958712712,0.2650158,86940.0,86939.0,0.00017251]
[1765958712913,0.2680158,86940.0,86939.0,0.00017251]
[1765958714308,0.2630158,86940.0,86939.0,0.19869251]
[1765958714508,0.2680158,86940.0,86939.0,0.19869251]
[1765958715616,0.2650158,86940.0,86939.0,0.19869251]
[1765958715804,0.2640158,86940.0,86939.0,0.19869251]
[1765958716004,0.2660158,86940.0,86939.0,0.19869251]
[1765958716709,0.2650158,86940.0,86939.0,0.19869251]
[1765958717414,0.2650158,86940.0,86939.0,0.09964251]
[1765958718607,0.2650158,86940.0,86939.0,0.19869251]
[1765958719921,0.002,86940.0,86939.0,0.19869251]
[1765958720216,0.19475,86940.0,86939.0,0.19869251]
[1765958721231,0.19375,86940.0,86939.0,0.19869251]
[1765958721412,0.25351,86940.0,86939.0,0.19869251]
[1765958721613,0.25351,86940.0,86939.0,0.09964251]
[1765958722022,0.25251,86940.0,86939.0,0.09964251]
[1765958722223,0.25251,86940.0,86939.0,0.19869251]
[1765958722927,0.25351,86940.0,86939.0,0.19869251]
[1765958723526,0.25251,86940.0,86939.0,0.19869251]
[1765958723732,0.25351,86940.0,86939.0,0.19869251]
[1765958724137,0.25251,86940.0,86939.0,0.19869251]
[1765958724321,0.25451,86940.0,86939.0,0.19869251]
[1765958724724,0.25251,86940.0,86939.0,0.19869251]
[1765958724928,0.25351,86940.0,86939.0,0.19869251]
[1765958725622,0.25251,86940.0,86939.0,0.19869251]
[1765958725824,0.25351,86940.0,86939.0,0.19869251]
[1765958726216,0.61431,86940.0,86939.0,0.00017251]
[1765958726427,0.61331,86940.0,86939.0,0.00017251]
[1765958726722,0.61331,86940.0,86931.0,0.46027]
[1765958726723,0.2042569,86932.0,86931.0,0.46027]
[1765958726924,0.2042578,86925.0,86924.0,0.55932]
[1765958728226,0.2042578,86925.0,86924.0,0.3608]
[1765958728227,0.2052578,86925.0,86924.0,0.3608]
[1765958728436,0.23385714,86925.0,86924.0,0.3608]
[1765958728816,0.23485714,86925.0,86924.0,0.3608]
[1765958729516,0.23685714,86925.0,86924.0,0.09947]
[1765958729723,0.23685714,86925.0,86924.0,0.19852]
[1765958730430,0.23485714,86925.0,86924.0,0.19852]
[1765958730629,0.23685714,86925.0,86924.0,0.19852]
[1765958732631,0.23485714,86925.0,86924.0,0.19852]
[1765958732832,0.23685714,86925.0,86924.0,0.19852]
[1765958733531,0.23685714,86925.0,86924.0,0.09947]
[1765958733731,0.23685714,86925.0,86924.0,0.19852]
[1765958734229,0.23485714,86925.0,86924.0,0.19852]
[1765958734429,0.23685714,86925.0,86924.0,0.19852]
[1765958734735,0.04410714,86925.0,86924.0,0.19852]
[1765958737032,0.01172799,86943.0,86924.0,0.19852]
[1765958737033,0.21163308,86940.0,86932.0,0.18223]
[1765958737327,0.05177,87006.0,86932.0,0.18223]
[1765958737328,0.05177,86964.0,86960.0,0.0115031]
[1765958737729,0.05177,86964.0,86963.0,0.7216]
[1765958738121,0.23476,86964.0,86963.0,0.7216]
[1765958738924,0.23476,86964.0,86963.0,0.7226]
[1765958739137,0.23476,86964.0,86963.0,0.7236]
[1765958739634,0.23476,86964.0,86963.0,0.7226]
[1765958740032,0.23476,86964.0,86963.0,0.7341028]
[1765958740532,0.23476,86964.0,86963.0,0.7331028]
[1765958740829,0.23476,86964.0,86963.0,0.7341028]
[1765958741235,0.23476,86964.0,86963.0,0.7331028]
[1765958741933,0.23476,86964.0,86963.0,0.7341028]
[1765958742137,0.23476,86964.0,86963.0,0.7351028]
[1765958742432,0.05177,86964.0,86963.0,0.7351028]
[1765958743536,0.05177,86964.0,86963.0,0.7341028]
[1765958743736,0.05177,86964.0,86963.0,0.7351028]
[1765958743937,0.05177,86964.0,86963.0,0.7341028]
[1765958744134,0.05177,86964.0,86963.0,0.7351028]
[1765958745341,0.05177,86964.0,86963.0,0.7341028]
[1765958745738,0.05177,86964.0,86963.0,0.7351028]
[1765958746543,0.00017251,86972.0,86971.0,0.0115017]
[1765958746731,0.00017251,86972.0,86971.0,0.3723017]
[1765958753346,0.09171251,86972.0,86971.0,0.3723017]
[1765958754049,0.00017251,86972.0,86971.0,0.3723017]
[1765958754652,0.19466411,86972.0,86971.0,0.3608]
[1765958757164,0.19566411,86972.0,86971.0,0.3608]
[1765958757547,0.19466411,86972.0,86971.0,0.3608]
[1765958761254,0.19566411,86972.0,86971.0,0.3608]
[1765958763556,0.19466411,86972.0,86971.0,0.3608]
[1765958764262,0.19566411,86972.0,86971.0,0.3608]
[1765958764765,0.19466411,86972.0,86971.0,0.3608]
[1765958765264,0.19566411,86972.0,86971.0,0.3608]
[1765958765461,0.19666411,86972.0,86971.0,0.3608]
[1765958766163,0.19566411,86972.0,86971.0,0.3608]
[1765958767361,0.19466411,86972.0,86971.0,0.3608]
[1765958767565,0.19566411,86972.0,86971.0,0.3608]
[1765958768368,0.19666411,86972.0,86971.0,0.3608]
[1765958771269,0.19566411,86972.0,86971.0,0.3608]
[1765958771469,0.19666411,86972.0,86971.0,0.3608]
[1765958772170,0.19566411,86972.0,86971.0,0.3608]
[1765958772373,0.19666411,86972.0,86971.0,0.3608]
[1765958772867,0.19566411,86972.0,86971.0,0.3608]
[1765958773072,0.19666411,86972.0,86971.0,0.3608]
[1765958773572,0.19566411,86972.0,86971.0,0.3608]
[1765958773774,0.19666411,86972.0,86971.0,0.3608]
[1765958775264,0.19566411,86972.0,86971.0,0.3608]
[1765958775464,0.19666411,86972.0,86971.0,0.3608]
[1765958776362,0.19566411,86972.0,86971.0,0.3608]
[1765958776567,0.19666411,86972.0,86971.0,0.3608]
[1765958777577,0.2617221,86968.0,86967.0,0.0115022]
[1765958777766,0.2617221,86968.0,86967.0,0.7331022]
[1765958778162,0.2617221,86968.0,86967.0,0.7216]
[1765958779564,0.0115021,86968.0,86967.0,0.7216]
[1765958779970,0.1416021,86968.0,86967.0,0.7216]
[1765958780477,0.2617221,86968.0,86967.0,0.7216]
[1765958780678,0.25022,86968.0,86967.0,0.7216]
[1765958781277,0.0115021,86969.0,86968.0,0.0115021]
[1765958782282,0.2617221,86969.0,86968.0,0.0115021]
[1765958783368,0.2617221,86969.0,86967.0,0.7216]
[1765958783974,0.2627221,86969.0,86967.0,0.7216]
[1765958784575,0.2617221,86969.0,86967.0,0.7216]
[1765958784769,0.25022,86968.0,86967.0,0.7216]
[1765958787176,0.25122,86968.0,86967.0,0.7216]
[1765958787579,0.25222,86968.0,86967.0,0.7216]
[1765958795192,0.002,86968.0,86967.0,0.7216]
[1765958796684,0.2352,86968.0,86967.0,0.7216]
[1765958800489,0.2467022,86968.0,86967.0,0.7216]
[1765958802085,0.0135022,86968.0,86967.0,0.7216]
[1765958802292,0.1258722,86968.0,86967.0,0.7216]
[1765958802997,0.002,86968.0,86967.0,0.7216]
[1765958806195,0.23686,86968.0,86967.0,0.7216]
[1765958806693,0.002,86968.0,86967.0,0.7216]
[1765958810694,0.07052,86968.0,86967.0,0.7216]
[1765958818705,0.18289,86968.0,86967.0,0.7216]
[1765958822103,0.30538,86968.0,86967.0,0.7216]
[1765958826212,0.30538,86968.0,86967.0,0.75235555]
[1765958833017,0.30438,86968.0,86967.0,0.75235555]
[1765958833918,0.30438,86968.0,86967.0,0.7216]
[1765958834312,0.30338,86968.0,86967.0,0.7216]
[1765958834617,0.30438,86968.0,86967.0,0.7216]
[1765958834818,0.31597171,86968.0,86967.0,0.7216]
[1765958835015,0.2937737,86956.0,86955.0,0.00017251]
[1765958835216,0.2298656,86942.0,86941.0,0.3608]
[1765958835721,0.2298666,86934.0,86933.0,0.3608]
[1765958838119,0.2308666,86934.0,86933.0,0.3608]
[1765958838315,0.2318666,86934.0,86933.0,0.3608]
[1765958843228,0.0115075,86927.0,86926.0,0.00014544]
[1765958843427,0.0115075,86927.0,86926.0,0.36094544]
[1765958845523,0.2298675,86927.0,86926.0,0.36094544]
[1765958845727,0.1236075,86927.0,86926.0,0.36094544]
[1765958845924,0.0115075,86927.0,86926.0,0.36094544]
[1765958847628,0.06391,86932.0,86927.0,0.0115075]
[1765958847833,0.06391,86940.0,86939.0,0.0115059]
[1765958848130,0.06391,86940.0,86939.0,0.3723059]
[1765958850420,0.06391,86940.0,86939.0,0.3733059]
[1765958850621,0.06391,86940.0,86939.0,0.3743059]
[1765958855135,0.06391,86940.0,86939.0,0.3628]
[1765958855325,0.31377,86940.0,86939.0,0.3628]
[1765958856746,0.31477,86940.0,86939.0,0.3608]
[1765958857239,0.31377,86940.0,86939.0,0.3608]
[1765958857447,0.33507,86940.0,86939.0,0.3608]
[1765958857636,0.33607,86940.0,86939.0,0.3608]
[1765958858838,0.27836,86931.0,86930.0,0.09323542]
[1765958859034,0.2857375,86927.0,86926.0,0.01165294]
[1765958859429,0.2857375,86927.0,86926.0,0.00014544]
[1765958860036,0.2857387,86918.0,86917.0,0.45403542]
[1765958860336,0.2857387,86918.0,86917.0,0.3608]
[1765958860337,0.3060387,86918.0,86917.0,0.3608]
[1765958861040,0.30617944,86918.0,86917.0,0.3608]
[1765958861347,0.30617944,86918.0,86917.0,0.3628]
[1765958862048,0.30617944,86918.0,86917.0,0.3608]
[1765958868149,0.02044074,86918.0,86917.0,0.3608]
[1765958869753,0.29467074,86918.0,86917.0,0.3608]
[1765958872149,0.29467074,86918.0,86916.0,0.0115089]
[1765958872452,0.29467074,86918.0,86917.0,0.3608]
[1765958873940,0.02044074,86918.0,86917.0,0.3608]
[1765958875640,0.02044074,86918.0,86917.0,0.3628]
[1765958876151,0.02044074,86918.0,86917.0,0.3608]
[1765958876447,0.02044074,86918.0,86917.0,0.3648]
[1765958879347,0.02044074,86918.0,86917.0,0.39555555]
[1765958879551,0.08496,86925.0,86924.0,0.0115079]
[1765958879752,0.08496,86925.0,86924.0,0.3723079]
[1765958882047,0.08496,86925.0,86924.0,0.3733079]
[1765958882242,0.08496,86925.0,86924.0,0.3743079]
[1765958882952,0.08496,86925.0,86924.0,0.3753079]
[1765958883548,0.08496,86925.0,86924.0,0.3743079]
[1765958883742,0.08496,86925.0,86924.0,0.3753079]
[1765958883948,0.08496,86935.0,86929.0,0.0115073]
[1765958884350,0.0964665,86935.0,86929.0,0.0115073]
[1765958884551,0.35833,86930.0,86929.0,0.0115073]
[1765958885058,0.35833,86930.0,86929.0,0.04237145]
[1765958885250,0.35833,86930.0,86927.0,0.3608]
[1765958885555,0.27082,86928.0,86927.0,0.3608]
[1765958886743,0.27082,86928.0,86927.0,0.3618]
[1765958896370,0.27082,86928.0,86927.0,0.39267304]
[1765958898669,0.35236,86928.0,86927.0,0.39267304]
[1765958899169,0.35236,86928.0,86927.0,0.3618]
[1765958900671,0.08154,86928.0,86927.0,0.3618]
[1765958902664,0.35236,86928.0,86927.0,0.3618]
[1765958905260,0.35236,86928.0,86927.0,0.3628]
[1765958905460,0.35236,86928.0,86927.0,0.3618]
[1765958906875,0.35236,86928.0,86927.0,0.3608]
[1765958907176,0.35336,86928.0,86927.0,0.3608]
[1765958911978,0.27082,86926.0,86925.0,0.04101148]
[1765958912178,0.27082,86926.0,86925.0,0.40181148]
[1765958915280,0.27082,86926.0,86925.0,0.3608]
[1765958916384,0.08154,86928.0,86926.0,0.0115077]
[1765958916587,0.32686,86928.0,86926.0,0.0115077]
[1765958916882,0.32686,86928.0,86925.0,0.3723078]
[1765958916883,0.3383675,86928.0,86925.0,0.3723078]
[1765958917072,0.2436,86926.0,86925.0,0.3723078]
[1765958919982,0.2436,86926.0,86925.0,0.3608]
[1765958921284,0.32054,86924.0,86922.0,0.04129854]
[1765958921490,0.2436,86922.0,86921.0,0.04129854]
[1765958921685,0.2551087,86918.0,86917.0,0.04129854]
[1765958921885,0.2551087,86918.0,86916.0,0.3608]
[1765958921886,0.2436,86917.0,86916.0,0.3608]
[1765958923391,0.2436,86917.0,86916.0,0.39176037]
[1765958923687,0.2436,86917.0,86916.0,0.39276037]
[1765958924089,0.2436,86917.0,86916.0,0.39376037]
[1765958924394,0.2436,86917.0,86916.0,0.3628]
[1765958934599,0.2436,86917.0,86916.0,0.002]
[1765958936396,0.27205239,86917.0,86916.0,0.002]
[1765958943304,0.27205239,86917.0,86913.0,0.3608]
[1765958943305,0.2436,86914.0,86913.0,0.3608]
[1765958944901,0.2476,86914.0,86913.0,0.3608]
[1765958946111,0.2476,86914.0,86902.0,0.0115108]
[1765958946112,0.22956,86903.0,86902.0,0.03096037]
[1765958946299,0.0695,86904.0,86898.0,0.00230156]
[1765958946300,0.22956,86899.0,86898.0,0.00230156]
[1765958948000,0.23056,86899.0,86898.0,0.00230156]
[1765958948995,0.2420712,86899.0,86898.0,0.00230156]
[1765958949395,0.2430712,86899.0,86898.0,0.00230156]
[1765958949709,0.23156,86899.0,86898.0,0.00230156]
[1765958950705,0.25985711,86899.0,86898.0,0.00230156]
[1765958950912,0.23156,86899.0,86898.0,0.00230156]
[1765958951103,0.23056,86899.0,86898.0,0.00230156]
[1765958951413,0.22956,86899.0,86898.0,0.00230156]
[1765958951909,0.2410712,86899.0,86898.0,0.00230156]
[1765958952108,0.22956,86899.0,86898.0,0.00230156]
[1765958952711,0.22956,86899.0,86898.0,0.00330156]
[1765958952912,0.22956,86899.0,86898.0,0.00430156]
[1765958953215,0.22956,86899.0,86898.0,0.00330156]
[1765958954512,0.22956,86899.0,86898.0,0.00230156]
[1765958955813,0.22956,86899.0,86898.0,0.36310156]
[1765958956015,0.18466,86900.0,86899.0,0.0115112]
[1765958956211,0.0695,86900.0,86899.0,0.0115112]
[1765958956414,0.29906,86900.0,86899.0,0.0115112]
[1765958957515,0.29906,86900.0,86899.0,0.0125112]
[1765958958018,0.29906,86900.0,86899.0,0.0135112]
[1765958958614,0.29906,86900.0,86899.0,0.0125112]
[1765958959419,0.29906,86900.0,86899.0,0.0115112]
[1765958959912,0.29906,86900.0,86898.0,0.36310156]
[1765958959913,0.22956,86899.0,86898.0,0.36310156]
[1765958960117,0.22956,86899.0,86898.0,1.56e-06]
[1765958960118,0.2410712,86899.0,86898.0,1.56e-06]
[1765958960531,0.29906,86888.0,86887.0,0.03096037]
[1765958960717,0.2410728,86887.0,86886.0,0.03096037]
[1765958961520,0.22956,86886.0,86885.0,0.04247347]
[1765958963319,0.22956,86886.0,86885.0,0.04347347]
[1765958964022,0.22956,86886.0,86885.0,0.04447347]
[1765958964628,0.22956,86886.0,86885.0,0.04347347]
[1765958964816,0.22956,86886.0,86885.0,0.04447347]
[1765958965527,0.22956,86886.0,86885.0,0.04247347]
[1765958965727,0.22956,86886.0,86885.0,0.04447347]
[1765958966425,0.22956,86886.0,86885.0,0.0135131]
[1765958968718,0.0695,86888.0,86885.0,0.0135131]
[1765958969319,0.29906,86888.0,86885.0,0.05481164]
[1765958970020,0.29906,86888.0,86887.0,0.0115128]
[1765958970216,0.0695,86888.0,86887.0,0.0115128]
[1765958970620,0.18466,86888.0,86887.0,0.0115128]
[1765958970820,0.29906,86888.0,86887.0,0.0115128]
[1765958971130,0.0695,86888.0,86887.0,0.0135128]
[1765958971520,0.29906,86888.0,86887.0,0.0135128]
[1765958974327,0.29906,86888.0,86887.0,0.0125128]
[1765958974532,0.29906,86888.0,86887.0,0.0135128]
[1765958974727,0.29906,86888.0,86887.0,0.0125128]
[1765958974928,0.29906,86888.0,86887.0,0.0135128]
[1765958976234,0.29906,86888.0,86887.0,0.07503002]
[1765958976433,0.29906,86888.0,86887.0,0.0135128]
[1765958977235,0.29906,86888.0,86887.0,0.0125128]
[1765958977435,0.29906,86888.0,86887.0,0.0135128]
[1765958978026,0.29906,86888.0,86887.0,0.0125128]
[1765958978226,0.29906,86888.0,86887.0,0.0135128]
[1765958988136,0.29906,86888.0,86887.0,0.07503002]
[1765958989542,0.29906,86888.0,86887.0,0.0135128]
[1765958998150,0.29906,86888.0,86887.0,0.0125128]
[1765958998347,0.29906,86888.0,86887.0,0.0135128]
[1765959000847,0.29906,86888.0,86887.0,0.0125128]
[1765959001049,0.29906,86888.0,86887.0,0.0135128]
[1765959004259,0.29906,86888.0,86887.0,0.0115128]
[1765959004559,0.29906,86888.0,86887.0,0.0125128]
[1765959005344,0.29906,86888.0,86887.0,0.0135128]
[1765959005747,0.23303,86885.0,86884.0,0.0115132]
[1765959005957,0.23303,86885.0,86884.0,0.7316332]
[1765959007144,0.23303,86881.0,86876.0,0.3608]
[1765959007341,0.23303,86881.0,86880.0,0.77008]
[1765959008246,0.23303,86881.0,86880.0,0.77108]
[1765959008657,0.23303,86881.0,86880.0,0.052]
[1765959008848,0.23303,86881.0,86880.0,0.051]
[1765959009049,0.23303,86881.0,86880.0,0.052]
[1765959011355,0.23303,86881.0,86880.0,0.1704]
[1765959011655,0.23303,86881.0,86880.0,0.052]
[1765959018664,0.23303,86881.0,86880.0,0.1704]
[1765959018865,0.23303,86881.0,86880.0,0.28144]
[1765959019461,0.23303,86881.0,86880.0,0.052]
[1765959024769,0.23303,86881.0,86880.0,0.1704]
[1765959025070,0.23303,86881.0,86880.0,0.052]
[1765959029460,0.23303,86881.0,86880.0,0.1704]
[1765959031075,0.23303,86881.0,86880.0,0.052]
[1765959032377,0.23303,86881.0,86880.0,0.28144]
[1765959032565,0.23303,86881.0,86880.0,0.052]
[1765959034176,0.23303,86881.0,86880.0,0.11391685]
[1765959034474,0.23303,86881.0,86880.0,0.23231685]
[1765959034675,0.23303,86881.0,86880.0,0.36240685]
[1765959034875,0.23303,86881.0,86880.0,0.3624517]
[1765959035268,0.23303,86881.0,86880.0,0.30049]
[1765959035872,0.23303,86881.0,86880.0,0.052]
[1765959036072,0.23303,86881.0,86880.0,0.25615991]
[1765959036786,0.23303,86881.0,86880.0,0.19419]
[1765959037370,0.23303,86881.0,86880.0,0.32428]
[1765959043677,0.11966,86881.0,86880.0,0.32428]
[1765959043878,0.19926,86886.0,86885.0,0.27147]
[1765959044079,0.19926,86886.0,86885.0,0.33345879]
[1765959044278,0.19926,86886.0,86885.0,0.27147]
[1765959044580,0.33417,86886.0,86885.0,0.27147]
[1765959044786,0.0695,86888.0,86887.0,0.27147]
[1765959044787,0.13186,86888.0,86887.0,0.27147]
[1765959046684,0.13186,86888.0,86887.0,0.27247]
[1765959047180,0.13186,86888.0,86887.0,0.27147]
[1765959047378,0.33627,86892.0,86891.0,0.27147]
[1765959047583,0.47010783,86901.0,86895.0,0.27147]
[1765959047783,0.08102,86901.0,86895.0,0.27147]
[1765959048180,0.08102,86908.0,86895.0,0.27147]
[1765959048377,0.34779,86908.0,86907.0,0.2829802]
[1765959048979,0.34779,86908.0,86907.0,0.0115102]
[1765959049489,0.34779,86908.0,86907.0,0.1489702]
[1765959049674,0.34779,86908.0,86907.0,0.2829802]
[1765959054085,0.34779,86908.0,86907.0,0.2839802]
[1765959054894,0.34779,86908.0,86907.0,0.2829802]
[1765959055191,0.34779,86908.0,86907.0,0.2839802]
[1765959056883,0.34779,86908.0,86907.0,0.2829802]
[1765959058794,0.13186,86908.0,86907.0,0.2829802]
[1765959059388,0.26677,86908.0,86907.0,0.2829802]
[1765959059684,0.26677,86908.0,86907.0,0.2839802]
[1765959059885,0.26677,86908.0,86907.0,0.2849802]
[1765959060596,0.34779,86908.0,86907.0,0.2859802]
[1765959060983,0.34779,86908.0,86907.0,0.2849802]
[1765959061284,0.62757,86911.0,86910.0,0.2829798]
[1765959061487,0.26677,86911.0,86910.0,0.2829798]
[1765959061689,0.34796262,86916.0,86915.0,0.2829791]
[1765959061990,0.00017262,86916.0,86915.0,0.31382243]
[1765959062288,0.26694262,86916.0,86915.0,0.31382243]
[1765959062691,0.13203262,86916.0,86915.0,0.31382243]
[1765959062890,0.00017262,86916.0,86915.0,0.2829791]
[1765959063995,0.00017262,86916.0,86915.0,0.32422489]
[1765959064188,0.34779,86924.0,86923.0,0.2829781]
[1765959065400,0.34779,86924.0,86923.0,0.0115081]
[1765959065591,0.34779,86924.0,86923.0,0.8676481]
[1765959065986,0.34779,86924.0,86923.0,0.8686481]
[1765959066296,0.34779,86924.0,86923.0,1.0060181]
[1765959066497,0.34779,86924.0,86923.0,1.0050181]
[1765959069499,0.34779,86924.0,86923.0,0.2852181]
[1765959077101,0.34779,86924.0,86923.0,0.31603169]
[1765959082210,0.34779,86924.0,86923.0,0.2852181]
[1765959088117,0.34779,86924.0,86923.0,0.32646389]
[1765959089310,0.34779,86924.0,86923.0,0.2852181]
[1765959090614,0.70663,86928.0,86927.0,0.2852175]
[1765959091417,0.70663,86928.0,86927.0,0.32645357]
[1765959092507,0.70663,86928.0,86927.0,0.32745357]
[1765959093306,0.70663,86928.0,86927.0,0.2862175]
[1765959094714,0.70663,86928.0,86927.0,0.2852175]
[1765959102326,0.34583,86928.0,86927.0,0.2852175]
[1765959108028,0.34583,86928.0,86927.0,0.2862175]
[1765959108729,0.34583,86928.0,86927.0,0.0115075]
[1765959110424,0.34683,86928.0,86927.0,0.0115075]
[1765959111628,0.33777,86925.0,86924.0,0.19384659]
[1765959113330,0.33777,86925.0,86924.0,0.32085659]
[1765959116735,0.69857,86925.0,86924.0,0.2589879]
[1765959121629,0.69957,86925.0,86924.0,0.2589879]
[1765959122136,0.69957,86925.0,86924.0,0.0115079]
[1765959122328,0.26106,86920.0,86919.0,0.00017262]
[1765959122730,0.2725685,86920.0,86919.0,0.00017262]
[1765959123326,0.2725685,86920.0,86919.0,0.04146315]
[1765959123937,0.6333685,86920.0,86919.0,0.04146315]
[1765959124241,0.26106,86915.0,86914.0,5.3e-07]
[1765959124438,0.2682397,86911.0,86910.0,0.0115098]
[1765959124743,0.61753,86911.0,86910.0,0.0115098]
[1765959126042,0.07006,86910.0,86907.0,0.1344501]
[1765959126241,0.2487,86908.0,86907.0,0.1344501]
[1765959127436,0.2497,86908.0,86907.0,0.1344501]
[1765959129234,0.2497,86908.0,86907.0,0.2600901]
[1765959129840,0.2487,86908.0,86907.0,0.2600901]
[1765959132343,0.3608,86909.0,86908.0,0.24858]
[1765959132541,0.2487,86913.0,86912.0,0.2600895]
[1765959132741,0.12326,86913.0,86912.0,0.2600895]
[1765959133847,0.12326,86913.0,86912.0,0.2610895]
[1765959134642,0.12326,86913.0,86912.0,0.2620895]
[1765959134848,0.2487,86913.0,86912.0,0.2620895]
[1765959135045,0.2487,86913.0,86912.0,0.002]
[1765959135647,0.2487,86913.0,86912.0,0.001]
[1765959135845,0.2487,86913.0,86912.0,0.002]
[1765959136441,0.2487,86913.0,86912.0,0.001]
[1765959136655,0.2487,86909.0,86908.0,0.3608]
[1765959136946,0.2487,86903.0,86902.0,0.24875262]
[1765959137850,0.2487,86903.0,86902.0,0.00017262]
[1765959138245,0.2487,86903.0,86902.0,0.12311262]
[1765959138446,0.2487,86903.0,86902.0,0.00017262]
[1765959139555,0.2487,86903.0,86902.0,0.24875262]
[1765959152463,0.2487,86903.0,86902.0,0.00017262]
[1765959158167,0.35738,86898.0,86897.0,0.03278181]
[1765959158358,0.27437,86887.0,86886.0,0.646553]
[1765959158662,0.27437,86887.0,86886.0,0.285753]
[1765959160064,0.27437,86887.0,86886.0,0.287753]
[1765959160565,0.27437,86887.0,86886.0,0.27624]
[1765959160965,0.27437,86887.0,86886.0,0.27824]
[1765959161558,0.27437,86887.0,86886.0,0.63904]
[1765959165955,0.27437,86887.0,86886.0,0.50171]
[1765959166556,0.27437,86887.0,86886.0,0.49771]
[1765959166756,0.27437,86887.0,86886.0,0.63504]
[1765959172572,0.27437,86887.0,86886.0,0.27424]
[1765959190586,0.27437,86887.0,86886.0,0.26846]
[1765959190781,0.26852,86884.0,86883.0,0.33281869]
[1765959190974,0.26852,86884.0,86883.0,0.27095]
[1765959198992,0.26852,86884.0,86883.0,0.1394]
[1765959199992,0.26852,86884.0,86883.0,0.27095]
[1765959205396,0.26852,86884.0,86883.0,0.1394]
[1765959205896,0.26852,86884.0,86883.0,0.27095]
[1765959207790,0.0115132,86885.0,86880.0,0.05]
[1765959207791,0.26852,86881.0,86880.0,0.05]
[1765959208200,0.26852,86881.0,86880.0,0.1894]
[1765959208588,0.26852,86881.0,86880.0,0.32095]
[1765959209996,0.26852,86881.0,86880.0,0.32195]
[1765959212699,0.29688921,86881.0,86880.0,0.32195]
[1765959213591,0.29688921,86881.0,86880.0,0.1904]
[1765959213903,0.29688921,86881.0,86880.0,0.32195]
[1765959218706,0.29688921,86881.0,86880.0,0.1904]
[1765959219294,0.29688921,86881.0,86880.0,0.32195]
[1765959238720,0.25369,86891.0,86890.0,0.25693]
[1765959238915,0.28245016,86891.0,86890.0,0.25693]
[1765959240014,0.28345016,86891.0,86890.0,0.25693]
[1765959241414,0.28445016,86891.0,86890.0,0.25693]
[1765959242120,0.28345016,86891.0,86890.0,0.25693]
[1765959254230,0.28445016,86891.0,86890.0,0.25693]
[1765959255733,0.28445016,86891.0,86890.0,0.24577]
[1765959266138,0.002,86891.0,86890.0,0.24577]
[1765959266640,0.002,86891.0,86890.0,0.60657]
[1765959267437,0.001,86891.0,86890.0,0.60757]
[1765959268249,0.001,86891.0,86890.0,0.6489364]
[1765959268430,0.001,86891.0,86890.0,0.60757]
[1765959268632,0.00017262,86892.0,86891.0,0.2534123]
[1765959268828,0.00017262,86892.0,86891.0,0.29472569]
[1765959270339,0.00017262,86892.0,86891.0,0.2544123]
[1765959273641,0.00017262,86892.0,86891.0,0.29572569]
[1765959273841,0.00017262,86892.0,86891.0,0.2544123]
[1765959275448,0.00017262,86892.0,86891.0,0.2554123]
[1765959276042,0.00017262,86892.0,86891.0,0.2544123]
[1765959276239,0.00017262,86892.0,86891.0,0.2554123]
[1765959276848,0.00017262,86892.0,86891.0,0.2544123]
[1765959277040,0.00017262,86892.0,86891.0,0.2554123]
[1765959278043,0.22834262,86892.0,86891.0,0.29667521]
[1765959278239,0.29592262,86892.0,86891.0,0.2554123]
[1765959278452,0.29592262,86892.0,86891.0,0.2439]
[1765959278750,0.29592262,86892.0,86891.0,0.2429]
[1765959278958,0.29592262,86892.0,86891.0,0.2439]
[1765959279456,0.29592262,86892.0,86891.0,0.2429]
[1765959279647,0.29592262,86892.0,86891.0,0.2419]
[1765959280149,0.29692262,86892.0,86891.0,0.2419]
[1765959281844,0.29592262,86892.0,86891.0,0.2419]
[1765959286459,0.00017262,86892.0,86891.0,0.2419]
[1765959286657,0.00017262,86892.0,86891.0,0.6027]
[1765959288671,0.00017262,86892.0,86891.0,0.6037]
[1765959288968,0.00017262,86892.0,86891.0,0.6047]
[1765959289469,0.11430262,86892.0,86891.0,0.6047]
[1765959290171,0.00017262,86892.0,86891.0,0.6047]
[1765959291774,0.00017262,86892.0,86891.0,0.6037]
[1765959291984,0.00017262,86892.0,86891.0,0.6047]
[1765959292585,0.00017262,86892.0,86891.0,0.6037]
[1765959292882,0.00017262,86892.0,86891.0,0.6047]
[1765959293185,0.00017262,86892.0,86860.0,2.1552349]
[1765959293186,0.2396844,86875.0,86858.0,0.01381932]
[1765959293485,0.3058965,86859.0,86858.0,0.00230262]
[1765959293674,0.6666965,86859.0,86858.0,0.00230262]
[1765959293877,0.69145709,86859.0,86858.0,0.00230262]
[1765959294379,0.69157327,86859.0,86858.0,0.00230262]
[1765959294584,0.2396884,86845.0,86844.0,0.31309]
[1765959294781,0.6004884,86845.0,86844.0,0.31309]
[1765959295488,0.58897,86845.0,86844.0,0.31309]
[1765959295888,0.58897,86845.0,86844.0,0.31509]
[1765959296183,0.58897,86845.0,86844.0,0.31709]
[1765959299788,0.58897,86845.0,86844.0,0.31509]
[1765959299990,0.58897,86845.0,86844.0,0.31609]
[1765959300392,0.58897,86845.0,86844.0,0.31409]
[1765959300692,0.58897,86845.0,86844.0,0.31509]
[1765959301194,0.3608,86845.0,86844.0,0.31509]
[1765959301890,0.47493,86845.0,86844.0,0.31509]
[1765959302193,0.58897,86845.0,86844.0,0.31509]
[1765959310693,0.6004884,86845.0,86844.0,0.31509]
[1765959313093,0.6004884,86845.0,86844.0,0.24107]
[1765959314500,0.6014884,86845.0,86844.0,0.24007]
[1765959314694,0.6024884,86845.0,86844.0,0.23907]
[1765959314889,0.2857497,86835.0,86834.0,0.63686]
[1765959315091,0.28586584,86835.0,86834.0,0.27606]